bitfinex/quotes_ETHUSD_20251128
["timestamp","ask_amount","ask_price","bid_price","bid_amount"]
[1764344803633,0.30290275,3067.8,3067.6,0.4939]
[1764344803835,0.0998,3068.1,3067.6,1.24001133]
[1764344804041,0.30307064,3068.0,3067.7,0.4734]
[1764344804242,0.30307064,3067.9,3067.8,0.4939]
[1764344804668,0.30307064,3067.9,3067.8,0.9673]
[1764344805065,0.0998,3068.3,3067.8,4.2269649]
[1764344805267,0.30320384,3068.2,3067.9,0.8882]
[1764344805577,0.30320384,3068.1,3067.9,0.8882]
[1764344805769,0.405504,3068.2,3067.9,0.8882]
[1764344805949,0.30321511,3068.1,3068.0,0.4734]
[1764344806145,0.30321511,3068.1,3068.0,0.4939]
[1764344806362,0.30321511,3068.1,3068.0,0.9673]
[1764344807467,0.30321511,3068.1,3068.0,0.4734]
[1764344807668,0.405504,3067.8,3067.4,0.1843]
[1764344807855,0.0998,3067.6,3067.5,0.21]
[1764344808572,0.0998,3067.6,3067.4,0.1843]
[1764344808789,0.0998,3067.6,3067.5,0.21]
[1764344809136,3.66520716,3067.8,3067.5,0.6834]
[1764344809349,0.30319915,3067.7,3067.5,0.6834]
[1764344809670,0.0998,3067.7,3067.6,0.21]
[1764344809873,0.40302849,3067.7,3067.6,0.6834]
[1764344810239,0.30322849,3067.7,3067.6,1.1773]
[1764344810544,0.405504,3068.0,3067.6,1.1773]
[1764344810744,0.40308149,3067.9,3067.8,0.4734]
[1764344811361,0.405504,3067.8,3067.6,0.21]
[1764344811562,0.405504,3067.8,3067.7,0.4939]
[1764344811766,3.25892129,3068.5,3067.7,0.9673]
[1764344811937,0.3034145,3068.4,3067.9,0.4734]
[1764344812145,0.0998,3068.2,3067.9,0.4734]
[1764344812474,0.3034145,3068.1,3068.0,0.21]
[1764344812771,0.7081185,3068.1,3068.0,0.21]
[1764344813538,0.7081185,3068.1,3068.0,0.4734]
[1764344813770,0.7081185,3068.1,3068.0,1.1773]
[1764344814140,0.0998,3068.2,3068.0,1.1773]
[1764344814449,0.0998,3068.5,3068.1,0.6294]
[1764344814648,0.002,3068.3,3068.1,0.6294]
[1764344814970,0.0998,3068.2,3068.0,0.21]
[1764344815472,0.505304,3068.2,3068.0,0.21]
[1764344815823,3.35904334,3068.2,3068.0,0.21]
[1764344815951,0.405504,3068.1,3067.5,3.26098059]
[1764344816270,0.405504,3068.1,3067.6,0.21]
[1764344816271,0.0998,3067.9,3067.6,0.21]
[1764344816470,0.0998,3067.9,3067.6,0.24259877]
[1764344816773,0.0998,3067.9,3067.8,0.4734]
[1764344817445,0.405504,3068.1,3067.8,0.9673]
[1764344817642,3.66668537,3068.3,3067.8,0.4734]
[1764344817953,0.002,3068.3,3067.9,0.4939]
[1764344818152,0.407504,3068.3,3068.2,0.4734]
[1764344818465,0.407504,3068.3,3068.2,0.6834]
[1764344819073,0.002,3068.3,3068.2,0.6834]
[1764344819272,0.002,3068.3,3068.2,1.1773]
[1764344819775,0.002,3068.3,3068.2,4.43653994]
[1764344819976,0.002,3068.3,3068.2,5.22172862]
[1764344820174,0.002,3068.3,3068.2,5.01172862]
[1764344820373,0.002,3068.3,3068.2,1.96248868]
[1764344820578,0.002,3068.3,3068.2,0.9673]
[1764344820750,0.002,3068.3,3068.2,4.43653994]
[1764344821278,0.0998,3069.8,3068.2,20.98400567]
[1764344821484,3.55441428,3070.2,3069.4,0.1843]
[1764344821647,0.4569,3070.1,3069.5,0.21]
[1764344821844,3.2574674,3069.9,3069.5,0.21]
[1764344822049,0.4569,3070.6,3069.5,0.21]
[1764344822279,0.4569,3070.6,3069.5,3.96173001]
[1764344822280,6.51359712,3070.5,3069.5,3.96173001]
[1764344822575,0.0998,3070.1,3069.5,3.96173001]
[1764344822748,6.51359712,3070.5,3069.5,3.96173001]
[1764344822749,3.25671136,3070.6,3069.6,0.4939]
[1764344822949,0.0998,3070.8,3070.0,0.4734]
[1764344823246,0.0998,3070.5,3070.1,0.21]
[1764344823790,0.0998,3070.3,3070.1,0.21]
[1764344823955,0.4569,3070.8,3070.1,0.21]
[1764344824161,0.0998,3070.6,3070.2,0.4734]
[1764344824346,3.25658644,3070.7,3070.2,0.4734]
[1764344824548,6.61297288,3070.7,3070.2,0.4734]
[1764344824753,0.0998,3070.4,3070.3,0.21]
[1764344825583,3.25639832,3070.9,3070.3,0.6834]
[1764344825798,0.0998,3071.0,3070.3,1.1773]
[1764344825955,0.0998,3071.0,3070.9,0.4734]
[1764344826284,3.35606831,3071.0,3070.9,0.6834]
[1764344826483,4.04654893,3071.0,3070.9,0.21]
[1764344826780,0.0998,3070.7,3070.1,0.4939]
[1764344826959,0.0998,3070.7,3070.2,0.21]
[1764344827171,0.0998,3070.6,3070.2,0.21]
[1764344827368,0.405504,3070.9,3070.3,0.4939]
[1764344827563,0.0998,3070.7,3070.3,0.7039]
[1764344827767,0.0998,3070.7,3070.3,0.21]
[1764344828077,0.0998,3070.5,3070.3,0.21]
[1764344828263,3.66191965,3070.9,3070.6,0.4734]
[1764344828607,0.0998,3070.7,3070.3,0.21]
[1764344829106,0.0998,3070.7,3069.0,6.76974591]
[1764344829107,0.405504,3070.6,3069.0,6.76974591]
[1764344829404,0.405504,3070.6,3067.9,3.25952194]
[1764344829405,0.0998,3070.1,3069.5,0.4939]
[1764344829560,0.1849,3070.8,3070.0,0.4734]
[1764344829765,0.405504,3070.7,3070.1,0.209]
[1764344830070,6.5128313,3070.9,3070.1,0.209]
[1764344830071,0.505304,3070.5,3070.1,0.209]
[1764344830388,0.0998,3070.0,3069.4,0.4939]
[1764344830590,0.0998,3070.0,3069.5,0.209]
[1764344830763,0.0998,3070.0,3069.4,1.26444171]
[1764344831107,0.0998,3070.0,3068.2,0.4631]
[1764344831108,0.505304,3069.1,3068.2,0.4631]
[1764344831259,0.505304,3069.1,3068.3,0.209]
[1764344831464,0.0998,3068.9,3068.4,0.03259027]
[1764344831659,0.0998,3068.9,3068.2,0.4631]
[1764344831862,0.73618462,3068.6,3068.3,0.209]
[1764344832064,6.51741778,3068.7,3068.3,0.209]
[1764344832065,0.0998,3068.5,3068.3,0.209]
[1764344832301,0.0998,3068.5,3068.4,0.21]
[1764344832903,0.0998,3068.5,3068.1,0.156]
[1764344833072,0.0998,3068.5,3068.4,0.209]
[1764344833701,0.0998,3068.8,3068.4,1.1684]
[1764344833865,3.35847372,3068.8,3068.4,0.7053]
[1764344834066,0.0998,3068.8,3068.4,0.7053]
[1764344834393,3.35841656,3068.8,3068.4,0.7053]
[1764344834774,3.35841656,3068.8,3068.5,0.209]
[1764344834974,0.0998,3068.8,3068.5,0.209]
[1764344836117,0.405504,3068.8,3068.5,0.6721]
[1764344836616,0.0998,3069.1,3068.7,0.4963]
[1764344836805,0.405504,3069.0,3068.7,0.4963]
[1764344837108,0.404704,3069.0,3068.7,0.4963]
[1764344837309,0.0998,3069.1,3068.7,0.4963]
[1764344837509,6.51593144,3069.4,3068.7,0.4963]
[1764344837510,0.0998,3069.2,3068.8,0.4631]
[1764344837712,0.0998,3069.2,3068.9,0.209]
[1764344838283,3.35800662,3069.2,3068.9,0.209]
[1764344838786,6.61621324,3069.2,3068.9,0.209]
[1764344839021,0.0998,3069.1,3068.9,0.209]
[1764344839174,3.25804081,3069.4,3069.1,0.6449]
[1764344839382,0.0998,3069.3,3069.1,0.6449]
[1764344839601,0.0998,3069.6,3069.1,1.1049324]
[1764344839813,0.0998,3069.6,3069.2,0.4717]
[1764344840180,0.0998,3069.6,3069.2,0.9271]
[1764344840383,3.35758446,3069.6,3069.2,0.4717]
[1764344840577,0.0998,3069.6,3069.2,0.4717]
[1764344840883,0.405504,3069.7,3069.2,4.18527691]
[1764344841078,0.0998,3069.6,3069.2,0.76248481]
[1764344841307,0.0998,3069.6,3068.9,0.209]
[1764344841308,0.0998,3069.6,3069.1,0.1585]
[1764344841823,0.0998,3069.6,3068.6,3.25878341]
[1764344841824,0.505304,3069.1,3068.3,0.001]
[1764344842121,0.505304,3069.1,3068.4,0.209]
[1764344842323,0.505304,3069.1,3068.5,0.03258921]
[1764344842617,3.76366558,3069.1,3068.5,3.29149766]
[1764344842822,3.76366558,3069.1,3068.6,0.39558977]
[1764344842823,0.505304,3069.1,3068.6,0.39558977]
[1764344843029,3.76358849,3069.1,3068.7,0.03258708]
[1764344843226,0.505304,3069.1,3068.7,0.03258708]
[1764344843430,0.505304,3069.1,3068.7,0.48798708]
[1764344844319,0.0998,3069.1,3068.7,0.90223561]
[1764344844495,3.96585843,3069.3,3069.0,0.4717]
[1764344844701,3.66357587,3069.3,3069.0,0.4717]
[1764344844901,0.30228074,3069.2,3068.8,0.209]
[1764344845111,0.30228074,3069.1,3068.9,0.03258496]
[1764344845307,0.30228074,3069.1,3068.4,0.4554]
[1764344845308,0.0998,3069.1,3068.4,0.4554]
[1764344845501,0.0998,3068.9,3068.5,0.209]
[1764344847515,0.0998,3068.9,3068.5,3.46791516]
[1764344847826,0.405504,3068.8,3068.6,0.209]
[1764344847999,0.0998,3069.1,3068.7,0.4717]
[1764344848200,3.99436264,3069.2,3068.8,0.4717]
[1764344848201,3.76348202,3069.2,3068.8,0.4717]
[1764344848411,0.405504,3068.8,3068.3,0.001]
[1764344848593,3.66105999,3068.7,3068.4,0.209]
[1764344848791,0.3025511,3068.6,3068.4,0.209]
[1764344849003,3.35850889,3068.7,3068.4,0.209]
[1764344849205,0.30254351,3068.6,3068.4,0.209]
[1764344849520,6.61721778,3068.7,3068.4,0.209]
[1764344849825,0.30253481,3068.6,3068.4,0.209]
[1764344850125,0.30252627,3068.6,3068.4,0.209]
[1764344850322,0.30252627,3068.6,3068.3,0.001]
[1764344850491,0.30252627,3068.6,3068.4,0.209]
[1764344850691,3.85590889,3068.7,3068.4,0.209]
[1764344850930,0.40233997,3068.6,3068.4,0.209]
[1764344851222,0.40231546,3068.6,3068.4,0.209]
[1764344851422,0.30251546,3068.5,3068.4,0.209]
[1764344852225,0.30251546,3068.5,3068.4,0.6807]
[1764344852425,0.405504,3068.4,3068.3,0.001]
[1764344852624,4.42822758,3068.4,3068.3,0.001]
[1764344852793,4.92562758,3068.4,3068.3,0.21]
[1764344853358,4.92562758,3068.4,3068.3,0.001]
[1764344853538,4.92562758,3068.4,3068.3,0.21]
[1764344854093,4.42822758,3068.4,3068.3,0.21]
[1764344854950,0.30251546,3068.4,3068.3,0.6817]
[1764344855242,0.30251546,3068.4,3068.3,1.1371]
[1764344855425,0.30251546,3068.4,3068.3,4.85177577]
[1764344855628,0.30251546,3068.4,3068.3,1.62523338]
[1764344857027,3.56154296,3068.4,3068.3,0.21]
[1764344857419,4.94442358,3068.4,3068.3,0.21]
[1764344857931,4.11634296,3068.4,3068.3,0.21]
[1764344858324,0.85731546,3068.4,3068.3,0.21]
[1764344858528,0.40231546,3068.4,3068.3,0.21]
[1764344858904,0.40231546,3068.4,3068.3,0.001]
[1764344859125,0.40231546,3068.4,3068.3,0.21]
[1764344859501,0.30251546,3068.4,3068.3,0.6817]
[1764344860119,0.30251546,3068.4,3068.3,0.21]
[1764344861246,0.30171546,3068.4,3068.3,0.21]
[1764344862074,4.54974696,3068.4,3068.3,0.21]
[1764344863109,1.29071946,3068.4,3068.3,0.21]
[1764344863648,0.70721946,3068.4,3068.3,0.21]
[1764344863849,0.70721946,3068.4,3068.3,0.6637]
[1764344864046,0.30171546,3068.4,3068.3,1.1561]
[1764344865315,0.30171546,3068.4,3068.3,1.60947264]
[1764344865815,0.30171546,3068.4,3068.3,1.11707264]
[1764344866014,0.77811546,3068.4,3068.3,0.21]
[1764344866231,0.87791546,3068.4,3068.3,0.21]
[1764344866449,0.40151546,3068.4,3068.3,0.21]
[1764344866614,0.30171546,3068.4,3068.3,0.6637]
[1764344867214,0.30171546,3068.4,3068.3,1.1561]
[1764344867458,0.30171546,3068.4,3068.3,1.93866199]
[1764344867816,0.30171546,3068.4,3068.3,1.44626199]
[1764344868037,0.30171546,3068.4,3068.3,4.70539571]
[1764344868240,3.66415796,3068.8,3068.3,4.70539571]
[1764344868550,0.405504,3068.8,3068.3,4.70539571]
[1764344868762,3.25650419,3070.8,3068.3,4.70539571]
[1764344868763,3.26033458,3069.1,3068.7,0.4537]
[1764344868919,0.002,3069.1,3068.8,1.1551]
[1764344869113,0.002,3069.1,3069.0,0.4537]
[1764344869351,0.002,3069.1,3068.8,0.209]
[1764344870119,0.002,3069.1,3068.8,3.46757585]
[1764344870452,0.002,3069.1,3068.8,0.881636]
[1764344870619,0.002,3069.1,3068.8,0.209]
[1764344871556,0.002,3069.1,3068.8,3.46759398]
[1764344872048,0.002,3069.1,3069.0,0.4537]
[1764344872255,0.002,3069.1,3069.0,0.9461]
[1764344872970,0.002,3069.1,3069.0,7.4134282]
[1764344873129,0.002,3069.1,3069.0,8.82739069]
[1764344873326,0.30658534,3069.1,3069.0,8.82739069]
[1764344873527,0.30658534,3069.1,3069.0,12.08578104]
[1764344873727,0.002,3069.1,3069.0,12.08578104]
[1764344874238,0.002,3069.1,3069.0,12.81137515]
[1764344874439,0.002,3069.1,3069.0,13.02037515]
[1764344877722,0.30391484,3070.0,3069.1,0.72559411]
[1764344877923,0.002,3070.6,3069.9,0.4537]
[1764344878273,0.405504,3070.4,3070.0,0.209]
[1764344878555,0.30389425,3070.3,3070.0,0.209]
[1764344878762,0.30389425,3070.2,3070.1,3.25722289]
[1764344879063,0.002,3070.6,3070.0,0.7014]
[1764344879371,0.405504,3070.0,3069.3,0.72559411]
[1764344879532,0.405504,3069.8,3069.4,0.60737154]
[1764344879930,0.405504,3070.0,3069.5,0.4924]
[1764344880126,0.405504,3070.0,3069.4,0.60737154]
[1764344880127,0.4837,3069.5,3069.4,0.39837154]
[1764344880333,0.405504,3069.4,3068.4,0.43471602]
[1764344880530,0.505304,3069.1,3068.1,0.1184]
[1764344880839,0.30348627,3069.0,3068.4,0.7014]
[1764344881035,3.94103684,3069.9,3068.5,0.03258921]
[1764344881333,0.405504,3069.6,3068.9,0.4537]
[1764344881532,0.30350011,3069.5,3069.0,0.4924]
[1764344881764,0.405504,3069.8,3069.1,0.95034282]
[1764344882064,0.30347972,3069.7,3069.2,0.03258178]
[1764344882262,0.405504,3069.8,3069.2,0.52498178]
[1764344882558,0.3034123,3069.7,3069.2,0.52498178]
[1764344882726,0.405504,3069.9,3069.2,0.03258178]
[1764344882937,0.40321967,3069.8,3069.3,0.209]
[1764344883260,0.30341967,3069.7,3069.3,0.209]
[1764344883467,0.30345133,3069.6,3069.4,0.03257965]
[1764344883636,0.4937,3069.7,3069.4,0.03257965]
[1764344883832,0.30345881,3069.6,3069.4,0.03257965]
[1764344884049,0.4937,3069.7,3069.4,0.03257965]
[1764344884445,0.30346271,3069.6,3069.1,3.44638157]
[1764344884652,0.4937,3069.7,3069.2,0.209]
[1764344884846,0.405504,3070.0,3069.2,6.72529464]
[1764344885051,0.405504,3069.8,3069.3,0.03258071]
[1764344885251,0.30346554,3069.7,3069.3,0.03258071]
[1764344885451,0.405504,3069.9,3069.3,0.03258071]
[1764344885647,0.30345047,3069.8,3069.3,0.77382493]
[1764344885871,0.40325047,3069.7,3069.2,0.209]
[1764344886176,0.30345047,3069.6,3069.2,3.46717048]
[1764344886369,0.0998,3069.7,3069.2,3.46717048]
[1764344886539,0.405504,3069.6,3069.1,3.25825772]
[1764344886741,0.405504,3069.6,3069.2,0.209]
[1764344886961,0.899204,3069.6,3069.2,3.46713624]
[1764344887186,0.4837,3069.3,3069.1,0.37506577]
[1764344887481,0.405504,3069.4,3069.2,0.209]
[1764344887981,0.405504,3069.4,3069.2,0.24158178]
[1764344888183,0.4837,3069.3,3069.2,0.209]
[1764344888391,0.405504,3069.2,3068.3,3.26009782]
[1764344888545,0.405504,3069.0,3068.4,0.53500978]
[1764344888739,0.405504,3069.0,3068.4,1.26060389]
[1764344889046,0.30360716,3068.9,3068.4,3.79402445]
[1764344889353,0.405504,3069.0,3068.4,3.79402445]
[1764344889557,0.49356757,3068.9,3068.4,3.79402445]
[1764344889746,0.30366757,3068.8,3068.5,0.37950245]
[1764344890081,0.1899,3068.9,3068.5,0.37950245]
[1764344890274,0.30368971,3068.8,3068.5,0.37950245]
[1764344890461,0.1899,3068.9,3068.5,0.37950245]
[1764344890669,0.30370673,3068.8,3068.6,0.03258815]
[1764344890991,0.405504,3069.1,3068.6,3.25881509]
[1764344891198,0.30370641,3069.0,3068.6,3.25881509]
[1764344891400,0.30370641,3068.9,3068.6,3.25881509]
[1764344891703,0.882204,3069.1,3068.6,3.29140324]
[1764344891873,0.30295595,3069.0,3068.6,3.29140324]
[1764344892076,0.882204,3069.1,3068.6,3.29140324]
[1764344892675,0.002,3069.1,3068.7,0.452]
[1764344892904,0.002,3069.1,3068.8,0.209]
[1764344893104,0.002,3069.1,3068.9,0.03258496]
[1764344893276,0.002,3069.1,3068.8,0.209]
[1764344894304,0.002,3069.1,3069.0,0.4662]
[1764344894720,0.002,3069.1,3069.0,0.9182]
[1764344895096,0.002,3069.1,3069.0,4.17659035]
[1764344895697,0.002,3069.1,3069.0,4.90218446]
[1764344898131,0.002,3069.1,3069.0,4.45018446]
[1764344898511,0.002,3069.1,3069.0,1.19179411]
[1764344898714,0.002,3069.1,3069.0,5.13888629]
[1764344899229,0.002,3069.1,3069.0,5.62347019]
[1764344899630,0.002,3069.1,3069.0,5.13888629]
[1764344900837,0.002,3069.1,3069.0,5.17147019]
[1764344901038,0.002,3069.1,3069.0,5.13888629]
[1764344901402,0.002,3069.1,3069.0,4.67268629]
[1764344901732,0.002,3069.1,3069.0,5.67677019]
[1764344902196,0.002,3069.1,3069.0,5.64418629]
[1764344903038,0.002,3069.1,3069.0,5.67677019]
[1764344903606,0.002,3070.6,3069.0,5.67677019]
[1764344903607,0.4917,3070.4,3069.0,15.45194124]
[1764344903937,0.30448718,3070.3,3069.9,0.4742]
[1764344904234,0.30448718,3070.2,3070.0,0.209]
[1764344904531,0.30448718,3070.1,3070.0,0.209]
[1764344904830,0.77998718,3070.1,3070.0,0.209]
[1764344905039,0.30448718,3070.1,3070.0,3.46632899]
[1764344905241,0.77998718,3070.1,3070.0,0.209]
[1764344906311,0.405504,3070.0,3069.3,0.72559411]
[1764344906508,0.30448718,3069.9,3069.4,0.96577467]
[1764344906839,0.30448718,3069.8,3069.4,0.96577467]
[1764344907025,0.30435147,3069.7,3069.5,6.51571916]
[1764344907230,0.405504,3070.3,3069.7,0.4742]
[1764344907439,0.405504,3070.1,3069.8,0.209]
[1764344907747,0.30433658,3070.0,3069.8,0.209]
[1764344907944,0.405504,3070.3,3069.8,0.209]
[1764344907945,0.30430138,3069.9,3069.8,0.209]
[1764344908239,0.30430138,3069.9,3069.8,0.7063]
[1764344908421,0.30430138,3069.9,3069.8,0.209]
[1764344908742,0.30430138,3069.9,3069.8,0.6832]
[1764344909332,0.30430138,3069.9,3069.8,3.4665412]
[1764344909543,0.77980138,3069.9,3069.5,6.4673282]
[1764344909709,0.4747,3069.9,3069.8,0.209]
[1764344909909,0.30437569,3069.9,3069.8,0.209]
[1764344910538,0.77987569,3069.9,3069.6,0.75172985]
[1764344910742,0.30437569,3069.8,3069.7,0.209]
[1764344911135,0.505304,3069.7,3069.1,3.25819447]
[1764344911319,0.30437569,3069.6,3069.3,3.25807187]
[1764344911520,0.30437569,3069.5,3069.4,0.03257965]
[1764344912132,0.30437569,3069.5,3069.4,0.50677965]
[1764344913110,0.30437569,3069.5,3069.4,0.03257965]
[1764344913314,0.30437569,3069.5,3069.4,3.76474537]
[1764344913714,0.30437569,3069.5,3069.4,3.29054537]
[1764344914349,0.30437569,3069.5,3069.4,3.76474537]
[1764344914523,0.30437569,3069.5,3069.4,3.29054537]
[1764344915048,0.77987569,3069.5,3069.4,0.03257965]
[1764344915349,1.27157569,3069.5,3069.0,3.98393849]
[1764344915527,0.0219,3069.2,3069.0,1.04522667]
[1764344915726,0.405504,3069.0,3068.3,6.4673282]
[1764344915915,1.36652044,3068.9,3068.0,0.4973]
[1764344916118,1.85822044,3068.9,3068.8,0.21]
[1764344917021,1.36652044,3068.9,3068.8,0.21]
[1764344917418,1.85822044,3068.9,3068.8,0.21]
[1764344918021,1.36652044,3068.9,3068.8,0.21]
[1764344918220,1.85822044,3068.9,3068.8,0.21]
[1764344919371,1.95802044,3068.9,3068.8,0.21]
[1764344921758,0.70992044,3068.9,3068.8,0.672]
[1764344921922,0.70992044,3068.9,3068.8,0.21]
[1764344922263,0.70992044,3068.9,3068.8,0.24258602]
[1764344922758,0.30441644,3068.9,3068.8,4.31331021]
[1764344922933,0.5877,3069.7,3068.8,4.80151021]
[1764344923260,0.405504,3069.5,3068.8,4.76892419]
[1764344923431,0.405504,3069.3,3068.8,4.28072419]
[1764344923758,0.30422235,3069.2,3068.9,6.4673282]
[1764344923959,0.30422235,3069.1,3069.0,0.0325839]
[1764344924455,0.30422235,3069.1,3069.0,0.4945839]
[1764344925048,0.30422235,3069.1,3069.0,0.9827839]
[1764344925562,0.1831,3069.9,3069.1,6.51656836]
[1764344925748,0.30423439,3069.8,3069.5,6.4673282]
[1764344925926,0.30423439,3069.7,3069.6,0.209]
[1764344926330,0.002,3070.6,3069.8,0.462]
[1764344926562,0.002,3070.6,3070.2,7.53701214]
[1764344926863,0.002,3070.6,3070.2,8.23421214]
[1764344927056,0.002,3070.6,3070.2,8.95980625]
[1764344927564,0.002,3070.6,3070.2,12.21692305]
[1764344927858,0.002,3070.6,3070.2,13.76433783]
[1764344928465,0.002,3070.6,3070.2,12.60513783]
[1764344928683,0.002,3070.6,3070.2,0.209]
[1764344928684,0.9554,3070.3,3070.2,0.209]
[1764344928883,1.460704,3070.3,3070.2,0.209]
[1764344929652,0.002,3070.3,3070.2,0.671]
[1764344929852,0.002,3070.3,3070.2,4.4163168]
[1764344930082,0.002,3070.3,3070.2,4.85794848]
[1764344930351,0.002,3070.6,3070.3,0.72559411]
[1764344930575,0.002,3070.6,3070.5,0.462]
[1764344931258,0.002,3070.6,3070.5,0.9502]
[1764344931679,0.002,3070.6,3070.5,4.93259267]
[1764344931858,0.002,3070.6,3070.5,5.75154263]
[1764344933779,0.002,3070.6,3070.5,5.26334263]
[1764344933984,0.0012,3070.6,3070.5,5.26334263]
[1764344934183,0.0012,3070.6,3070.5,4.28474852]
[1764344935356,0.9577,3070.6,3070.0,3.2573065]
[1764344935578,0.0049,3070.4,3070.1,0.209]
[1764344935882,0.4889,3070.6,3070.1,3.46622289]
[1764344935883,0.0012,3070.6,3070.1,3.46622289]
[1764344936100,0.0012,3070.6,3070.2,0.03257116]
[1764344936298,0.0012,3070.6,3070.5,7.53701214]
[1764344936599,0.0012,3070.6,3070.5,8.49971335]
[1764344936970,0.0012,3070.6,3070.5,0.96270121]
[1764344937176,0.9577,3070.6,3070.5,0.209]
[1764344937676,0.9577,3070.6,3070.5,3.46579856]
[1764344937901,0.47,3070.6,3070.5,3.49836654]
[1764344938196,0.0012,3070.6,3070.5,3.49836654]
[1764344938792,0.0012,3070.6,3070.5,3.46579856]
[1764344939101,0.0012,3070.6,3070.5,4.13806886]
[1764344939301,0.0012,3070.6,3070.5,4.63263684]
[1764344939801,0.0012,3070.6,3070.5,5.12083684]
[1764344940600,0.0012,3070.6,3070.5,4.39106886]
[1764344940804,0.0012,3070.6,3070.5,4.13806886]
[1764344940970,0.47,3070.6,3069.6,1.15583282]
[1764344941170,0.47,3070.6,3068.5,5.75823897]
[1764344941171,0.405504,3070.4,3069.5,3.25785911]
[1764344941394,0.405504,3070.2,3069.6,0.24157753]
[1764344941602,0.505304,3070.2,3069.6,0.209]
[1764344941799,0.993204,3070.2,3069.7,6.54787111]
[1764344941974,0.893404,3070.2,3069.7,6.54787111]
[1764344942175,0.893404,3070.2,3069.8,0.86378711]
[1764344942370,0.893404,3070.2,3069.1,0.1885]
[1764344942371,0.405504,3069.9,3069.1,0.1885]
[1764344942592,0.1968,3070.0,3069.1,0.1885]
[1764344942593,0.0998,3069.8,3069.2,0.209]
[1764344942986,0.5877,3069.8,3069.2,0.209]
[1764344943794,0.5877,3069.8,3069.3,6.51614374]
[1764344944908,0.5877,3069.8,3069.3,3.25807187]
[1764344945206,0.5877,3069.8,3069.3,6.51614374]
[1764344945508,0.5877,3069.8,3069.4,0.03257965]
[1764344945693,0.5877,3069.8,3069.5,3.25785958]
[1764344945883,0.5877,3069.8,3069.6,0.24157753]
[1764344946093,0.405504,3069.9,3069.6,0.24157753]
[1764344946387,0.893404,3069.9,3069.6,0.24157753]
[1764344946798,0.405504,3070.2,3069.8,0.462]
[1764344947106,0.1968,3070.3,3069.9,0.03257435]
[1764344947329,0.30306301,3070.2,3070.0,0.209]
[1764344947510,0.6847,3070.3,3070.1,0.209]
[1764344947804,0.30312583,3070.2,3070.1,0.209]
[1764344947998,0.77192583,3070.2,3070.1,0.209]
[1764344950306,1.25962583,3070.2,3070.1,0.209]
[1764344951109,0.405504,3070.1,3070.0,0.001]
[1764344951305,1.20522983,3070.1,3070.0,0.001]
[1764344951533,1.63571045,3070.1,3070.0,0.21]
[1764344952039,1.30502983,3070.1,3070.0,0.21]
[1764344952196,0.30802583,3070.1,3070.0,0.21]
[1764344952397,0.30312583,3070.1,3070.0,0.59257432]
[1764344952600,0.30312583,3070.1,3070.0,0.24257328]
[1764344952827,0.75522583,3070.1,3070.0,0.21]
[1764344953339,1.24692583,3070.1,3070.0,0.21]
[1764344953542,4.90965272,3070.1,3070.0,0.001]
[1764344953724,1.75222983,3070.1,3070.0,0.21]
[1764344954121,1.16072983,3070.1,3070.0,0.21]
[1764344954913,5.01045272,3070.1,3070.0,0.21]
[1764344955146,1.75322983,3070.1,3070.0,0.21]
[1764344955315,5.01045272,3070.1,3070.0,0.21]
[1764344955811,1.75322983,3070.1,3070.0,0.21]
[1764344956011,5.01045272,3070.1,3070.0,0.21]
[1764344958224,5.00965272,3070.1,3070.0,0.21]
[1764344960936,4.90985272,3070.1,3070.0,0.21]
[1764344961468,5.00965272,3070.1,3070.0,0.21]
[1764344964272,5.34033334,3070.1,3070.0,0.21]
[1764344964486,5.34033334,3070.1,3070.0,0.001]
[1764344965478,6.06592745,3070.1,3070.0,0.001]
[1764344966259,5.76360162,3070.1,3070.0,0.001]
[1764344968364,5.434921,3070.1,3070.0,0.001]
[1764344968968,4.30382289,3070.1,3070.0,0.001]
[1764344969171,3.71132289,3070.1,3070.0,0.001]
[1764344969336,4.63450351,3070.1,3070.0,0.001]
[1764344969741,3.81112289,3070.1,3070.0,0.001]
[1764344969945,4.14180351,3070.1,3070.0,0.001]
[1764344970166,4.52135082,3070.1,3070.0,0.001]
[1764344970564,1.26412793,3070.1,3070.0,0.001]
[1764344970750,0.30672393,3070.1,3070.0,0.4592]
[1764344971185,0.30672393,3070.1,3070.0,0.926]
[1764344971884,0.002,3070.1,3070.0,0.926]
[1764344972546,0.002,3070.1,3070.0,4.9089231]
[1764344972745,0.002,3070.1,3070.0,12.80057107]
[1764344973548,0.002,3070.1,3070.0,5.93455893]
[1764344976146,0.002,3070.1,3070.0,5.96713221]
[1764344977243,0.002,3070.1,3070.0,13.04214435]
[1764344977547,0.002,3070.1,3070.0,13.00957107]
[1764344981068,0.002,3070.5,3070.1,0.72559411]
[1764344981254,0.002,3070.5,3070.4,0.4858]
[1764344981581,0.0012,3070.6,3070.4,0.51836904]
[1764344981756,0.002,3071.0,3070.9,7.80060625]
[1764344981955,0.002,3071.0,3070.9,8.28640625]
[1764344982172,0.002,3071.0,3070.9,8.98930625]
[1764344982377,0.4626,3071.0,3070.9,0.89893063]
[1764344982550,0.4626,3071.0,3070.9,0.209]
[1764344982968,0.0012,3071.0,3070.9,0.6948]
[1764344983167,0.0012,3071.0,3070.9,3.95117435]
[1764344983381,0.4626,3071.0,3070.9,0.209]
[1764344983768,0.0012,3071.0,3070.9,3.46537435]
[1764344983976,0.0012,3071.0,3070.9,0.209]
[1764344984157,0.0012,3071.0,3070.8,3.25644131]
[1764344984357,0.0012,3071.0,3070.9,0.6205617]
[1764344984770,0.0012,3071.0,3070.9,1.13892544]
[1764344985174,0.0012,3071.0,3070.9,4.36273605]
[1764344985383,0.0012,3071.0,3070.9,4.88919979]
[1764344985689,0.4626,3071.0,3070.9,0.6205617]